[Event "Polish Youth G18 Championship 2023"]
[Site "Jastrzebia Gora"]
[Date "2023.03.17"]
[Round "7.1"]
[White "Goraj, Barbara"]
[Black "Zabrzanska, Weronika"]
[Result "1/2-1/2"]
[ECO "A13"]
[WhiteElo "2130"]
[BlackElo "2021"]
[Annotator "TA"]
[PlyCount "135"]
[EventDate "2023.03.11"]
[EventType "swiss"]
[EventCountry "POL"]
[SourceTitle "playchess.com"]
[Source "ChessBase"]
[SourceQuality "1"]
[TimeControl "40/5400+30:1800+30"]

{[%evp 13,135,0,8,0,14,-6,-5,-40,0,0,5,-6,-15,-27,6,-58,-56,-77,-77,-99,-102,-216,-220,-313,-212,-626,-253,-369,-310,-346,-293,-491,-506,-499,-508,-503,-500,-908,-348,-415,-377,-370,-355,-344,-332,-311,-326,-341,-341,-466,-437,-709,-434,-462,-416,-494,-330,-327,-314,-418,-413,-383,-327,-541,-559,-547,-496,-568,-384,-591,-569,-698,-696,-734,-691,-5912,-71,-69,-60,-62,-58,-67,-62,-171,-161,-235,-62,-62,-39,-43,0,0,46,0,35,8,8,-342,-342,-379,-32,-310,-277,-366,-33,-310,115,-86,-81,-337,-332,-315,-306,-330,-47,-47,-47,-47,-47,-47,-47,-47,-40,-39]} 1. c4 {[%emt 0:00:03]} e6 {[%emt 0:00:35]} 2. Nc3 {[%emt 0:00:52]} d5 {[%emt 0:00:54]} 3. e3 {[%emt 0:00:42]} Nf6 {[%emt 0:01:38]} 4. Nf3 {[%emt 0:00:35]} Be7 {[%emt 0:05:00]} 5. b3 {[%emt 0:00:34]} c5 {[%emt 0:01:48]} 6. cxd5 {[%emt 0:02:58]} Nxd5 {[%emt 0:03:54]} 7. Bb2 {[%emt 0:02:18]} O-O {[%emt 0:03:20]} 8. Qb1 {[%emt 0:01:58] A13: English Opening: 1...e6.} Nc6 {[%emt 0:03:34]} 9. h4 {[%emt 0:02:05]} f5 {[%emt 0:09:02] [#]} 10. Bd3 $146 {[%emt 0:15:29] The position is equal.} ({Predecessor:} 10. Bb5 Bd7 11. Nxd5 exd5 12. h5 h6 13. O-O Qe8 14. d4 Nxd4 15. exd4 Bxb5 16. Re1 {1-0 Vachier Lagrave,M (2778)-So,W (2770) Clutch-ch June rapid 2020 (1.9)}) 10... Ncb4 {[%emt 0:04:28]} 11. Be2 {[%emt 0:02:53]} Bf6 {[%emt 0:01:08]} 12. Nxd5 {[%emt 0:17:43]} Nxd5 {[%emt 0:06:25]} 13. Ne5 {[%emt 0:05:08]} Bxh4 {[%emt 0:06:09]} 14. g3 {[%emt 0:07:06]} (14. Qc2 $11) 14... Bf6 $15 {[%emt 0:01:28][%cal Od5e3]} 15. f4 {[%emt 0:02:22]} b6 $1 {[%emt 0:03:33]} 16. Kf2 {[%emt 0:02:04]} Bxe5 {[%emt 0:07:23]} (16... Bb7 {keeps more tension.} 17. Rh2 h6 18. Ng6 Rf7) 17. fxe5 {[%emt 0:10:59]} (17. Bxe5 $17 Bb7 18. Rh2) 17... h6 $19 {[%emt 0:04:52]} 18. Bf3 {[%emt 0:03:50]} (18. Qc2 $142) 18... Bb7 {[%emt 0:00:36][%cal Of5f4]} 19. Rh4 {[%emt 0:01:03]} (19. Rh2) 19... Rb8 {[%emt 0:03:01]} (19... f4 $142 {And now ...fxg3+ would win.} 20. Kg1 (20. exf4 $2 Nxf4 21. Ke3 Ng2+ 22. Bxg2 Qg5+ 23. Kd3 Rad8+ {[%mdl 64] Skewer} 24. Bd4 Bxg2 $19) 20... fxg3 21. Rxh6 Rf5) 20. Qh1 {[%emt 0:02:43] [#]} (20. Qd1 $142) 20... Nf6 $1 {[%emt 0:07:28][%mdl 512]} 21. Bc3 {[%emt 0:12:01][%cal Oe5f6]} (21. Ke2 Ne4) 21... Ng4+ {[%emt 0:04:03]} 22. Ke2 $2 {[%emt 0:02:05]} (22. Kg1 Bxf3 23. Qxf3) 22... Ba6+ {[%emt 0:01:58]} 23. Ke1 {[%emt 0:00:12]} Qd3 {[%emt 0:01:05]} 24. Rc1 {[%emt 0:02:39]} Rbd8 {[%emt 0:00:58][%cal Og4e3]} 25. Qg1 {[%emt 0:01:34] [#]} (25. Qg2 $142 Nxe3 26. Qe2) 25... Nxe5 $2 {[%emt 0:00:59]} 26. Qf2 {[%emt 0:00:47]} Nxf3+ {[%emt 0:05:26]} 27. Qxf3 {[%emt 0:00:07] [#]} e5 $1 {[%emt 0:00:09]} 28. Kf2 {[%emt 0:00:28]} b5 {[%emt 0:03:37]} 29. b4 {[%emt 0:00:38]} Rc8 {[%emt 0:01:40] Hoping for ...cxb4.} 30. bxc5 {[%emt 0:00:54]} Rxc5 {[%emt 0:00:33]} 31. Rch1 {[%emt 0:00:27]} Rc7 {[%emt 0:06:11]} 32. Qh5 {[%emt 0:00:35]} (32. Re1 $142 Bb7 33. Qe2) 32... Bb7 {[%emt 0:01:17]} 33. Rg1 {[%emt 0:00:29]} Qd5 {[%emt 0:01:21]} (33... Rxc3 $2 34. dxc3 Qxc3 35. Qe2 $19) 34. a3 {[%emt 0:00:27]} Rd8 {[%emt 0:00:43]} 35. Qe2 {[%emt 0:00:33]} Qa2 {[%emt 0:00:40][%cal Oc7c3]} 36. Ba5 {[%emt 0:00:32] [#]} Rc2 $1 {[%emt 0:00:40]} 37. Rd1 {[%emt 0:00:05]} (37. Bxd8 $2 Rxd2 38. Re1 Qd5 $19) 37... Rd5 {[%emt 0:00:25]} 38. Bb4 {[%emt 0:00:26] [#]} (38. Qh5 Rd3 39. Qe8+ Kh7 40. Qxe5 Rdxd2+ 41. Bxd2 Rxd2+ 42. Rxd2 Qxd2+ 43. Kf1 Qd1+ 44. Kf2 Qc2+ 45. Ke1) 38... a5 $1 {[%emt 0:00:18][%mdl 64] Deflection} 39. Bxa5 {[%emt 0:00:39] White is weak on the light squares} Qxa3 {[%emt 0:00:16]} 40. Bb4 {[%emt 0:00:00]} Qa2 {[%emt 0:00:00]} 41. Qh5 {[%emt 0:04:33]} (41. Ke1 {was called for.} Bc6 42. Bc3) 41... Rd8 {[%emt 0:10:04]} 42. Qxf5 {[%emt 0:10:59][%cal Oh4h6] [#]} Qd5 $1 {[%emt 0:08:25]} 43. Ke1 {[%emt 0:05:02]} (43. Ke2 Rc4) 43... Rc7 {[%emt 0:01:57]} 44. Qg6 {[%emt 0:06:37]} Rf7 $2 {[%emt 0:01:05]} (44... Qg2 $19 {and Black stays clearly on top.} 45. e4 Rf7 46. Qxf7+ Kxf7) 45. Rxh6 $17 {[%emt 0:01:23][%csl Gh6][%cal Rg6h7]} Qe4 $1 {[%emt 0:06:45]} 46. Qxe4 {[%emt 0:02:17]} Bxe4 {[%emt 0:00:20]} 47. Rh2 {[%emt 0:01:03]} Bd3 {[%emt 0:00:05][%csl Gd3][%cal Rf7f1]} 48. Rf2 {[%emt 0:00:37] [#] Repels Rf1+} (48. Rh1 $1 $15) 48... Ra7 $1 $19 {[%emt 0:00:23] aiming for ...Ra4.} 49. Bc3 {[%emt 0:01:43] [#]} (49. Rh2 $142) 49... Rb7 $2 {[%emt 0:01:12]} (49... Ra6 $1 $19 {[%cal Ra6h6]} 50. Rf3 Rh6) 50. Ra1 $1 $15 {[%emt 0:01:36]} b4 {[%emt 0:01:06]} 51. Bxe5 {[%emt 0:00:31]} Rb5 {[%emt 0:01:23]} (51... b3 $5 {[%cal Rb3b2]} 52. Bb2 Rc7 $17) 52. Bb2 {[%emt 0:00:33]} b3 {[%emt 0:01:45]} (52... Rh5 $11 {is more appropriate.} 53. Rf4 Bb5) 53. Rf4 {[%emt 0:00:21]} (53. Ra7 $14 Rg5 54. Rff7) 53... g5 {[%emt 0:00:46]} (53... Rh5 $5 {[%cal Rh5h1]}) 54. Rf6 {[%emt 0:00:30]} Rc5 {[%emt 0:00:57]} 55. Kd1 $2 {[%emt 0:00:40][%mdl 8192]} (55. Ra3 $11 {and White is okay.}) 55... Rc2 $19 {[%emt 0:00:33]} 56. Rb1 {[%emt 0:00:20]} Be4 $2 {[%emt 0:01:22]} (56... Rd7 $19 {White must now prevent ...Rh7.} 57. Rh6 Rh7 58. Rxh7 Kxh7) 57. Bd4 $2 {[%emt 0:00:27][%mdl 8192]} (57. Rf2 $1 $15) 57... Ra2 {[%emt 0:01:12]} ({Stronger than} 57... Rxd2+ 58. Kxd2 Bxb1 59. Rb6 $11) 58. Rc1 {[%emt 0:00:40]} (58. Rxb3 Bc2+ 59. Ke1 Bxb3 $19) ({Wrong is} 58. d3 $2 Bxd3 59. Rxb3 Bc2+ 60. Ke2 Bxb3+ $19) 58... Bc2+ $2 {[%emt 0:00:55]} ({Better is} 58... b2 $19 {( -> ...Rxd4)} 59. Bxb2 Rxb2) 59. Ke2 $2 {[%emt 0:00:14][%mdl 8192]} (59. Rxc2 $1 $15 bxc2+ 60. Kc1) 59... Rb8 $2 {[%emt 0:00:35]} (59... b2 $19 60. Bxb2 Rxb2) 60. Rh1 {[%emt 0:00:30]} (60. Rh6 $16 {is necessary to keep the advantage. Rh8+ would be deadly.} Rb4 61. Rf1 Rxd4 62. exd4) 60... b2 $17 {[%emt 0:00:27]} 61. Rf2 $2 {[%emt 0:00:39][%mdl 8192]} (61. Rff1 $17 {keeps fighting.} Bh7 62. Rb1 (62. e4 $2 Ra4 $19)) 61... Bh7 $19 {[%emt 0:00:24]} (61... b1=R $2 62. Rh8#) 62. Bxb2 {[%emt 0:00:33]} Rbxb2 {[%emt 0:00:38]} 63. Kf3 {[%emt 0:00:31]} Rxd2 $2 {[%emt 0:00:27]} (63... Rb7 $19 {...Rf7+ is the strong threat.} 64. g4 Rf7+ 65. Kg3 Rxf2 66. Kxf2 Rxd2+ 67. Kf3 Kg7) 64. Rxd2 $15 {[%emt 0:00:06] Black is slightly better.} Rxd2 {[%emt 0:00:03]} 65. Rh5 {[%emt 0:00:35]} Rd5 {[%emt 0:00:40]} 66. Kg4 {[%emt 0:00:23]} Bf5+ {[%emt 0:00:41]} 67. Kxg5 {[%emt 0:00:23]} Be4+ {[%emt 0:00:35]} 68. Kh4 {[%emt 0:00:29] An exciting game.   Weighted Error Value: White=0.97/Black=0.67} 1/2-1/2

[Event "Polish Youth G18 Championship 2023"]
[Site "Jastrzebia Gora"]
[Date "2023.03.17"]
[Round "7.2"]
[White "Starosta, Martyna"]
[Black "Hertlein, Irena"]
[Result "1/2-1/2"]
[ECO "D32"]
[WhiteElo "2138"]
[BlackElo "1994"]
[Annotator "TA"]
[PlyCount "63"]
[EventDate "2023.03.11"]
[EventType "swiss"]
[EventCountry "POL"]
[SourceTitle "playchess.com"]
[Source "ChessBase"]
[SourceQuality "1"]
[TimeControl "40/5400+30:1800+30"]

{[%evp 12,63,40,41,35,34,38,16,14,25,24,17,28,28,57,53,67,25,93,73,61,27,99,49,59,47,45,22,31,14,32,0,20,21,22,18,16,16,17,9,17,8,14,15,19,0,0,0,0,0,0,0,0,0]} 1. d4 {[%emt 0:00:02]} d5 {[%emt 0:00:04]} 2. c4 {[%emt 0:00:10]} e6 {[%emt 0:00:05][%cal Be7e6,Be6d5,Bd5d4][%mdl 32]} 3. Nc3 {[%emt 0:00:14]} c5 {[%emt 0:00:05]} 4. cxd5 {[%emt 0:00:19]} exd5 {[%emt 0:00:05]} 5. Nf3 {[%emt 0:00:20]} Nc6 {[%emt 0:00:05]} 6. dxc5 {[%emt 0:00:24]} d4 {[%emt 0:00:05]} 7. Na4 {[%emt 0:00:08]} Bxc5 {[%emt 0:00:07][%mdl 64] [#] Decoy. D32: Tarrasch Defence: Sidelines and lines without g3.} 8. Nxc5 {[%emt 0:00:06]} Qa5+ {[%emt 0:00:04]} 9. Bd2 {[%emt 0:00:08]} Qxc5 {[%emt 0:00:05]} 10. Rc1 {[%emt 0:01:14]} Qb6 {[%emt 0:00:06]} 11. e3 {[%emt 0:00:24]} dxe3 {[%emt 0:04:57]} 12. Bxe3 {[%emt 0:00:06]} Qa5+ {[%emt 0:12:22]} 13. Bd2 {[%emt 0:01:44] [#]} Qh5 $146 {[%emt 0:01:23]} ({Predecessor:} 13... Qd8 14. Be2 Nge7 15. O-O O-O 16. Qa4 Be6 17. Rfd1 Qb6 18. b3 Rfd8 19. Be3 Rxd1+ 20. Rxd1 {½-½ Simek,P (2298)-Orsag,M (2312) CZE-chT1W 2122 2021 (5.3)}) 14. Bc3 {[%emt 0:04:32]} Qg4 {[%emt 0:07:19]} (14... Nge7 $11 {keeps the balance.}) 15. Bd3 {[%emt 0:05:26]} Nge7 {[%emt 0:03:11]} 16. h3 {[%emt 0:03:47]} Qh5 {[%emt 0:12:07]} (16... Qxg2 $2 17. Rh2 $18) (16... Qe6+ $11 17. Kf1 Kf8) 17. O-O {[%emt 0:20:07] White is more active.} ({Better is} 17. b4 $16) 17... O-O $14 {[%emt 0:00:28][%cal Bh8f8,Bf8d8,Bd8d4][%mdl 32]} 18. Re1 {[%emt 0:05:37]} (18. Nd4 $5 {[%cal Rd1h5]} Qxd1 19. Rfxd1 $16) 18... Be6 {[%emt 0:05:10]} 19. b4 {[%emt 0:02:47] [#] b5 is the strong threat.} a6 {[%emt 0:13:27]} 20. Bd2 {[%emt 0:07:24] A strong pair of Bishops.} Rfd8 {[%emt 0:09:42]} 21. Qe2 {[%emt 0:05:50]} Nd4 {[%emt 0:11:13] The position is equal.} (21... Bd5 $5 {[%cal Rd5f3]}) 22. Nxd4 {[%emt 0:01:27]} Qxe2 {[%emt 0:00:06]} 23. Bxe2 {[%emt 0:01:26] And now Nxe6 would win.} Rxd4 {[%emt 0:00:05]} 24. Be3 {[%emt 0:00:50]} Rd7 {[%emt 0:00:21]} 25. a3 {[%emt 0:01:08]} Nd5 {[%emt 0:02:34]} 26. Bd2 {[%emt 0:03:29]} h6 {[%emt 0:04:19]} 27. Bf3 {[%emt 0:02:23]} Rad8 {[%emt 0:04:15]} 28. Be3 {[%emt 0:04:39]} Nxe3 {[%emt 0:03:21]} 29. Rxe3 {[%emt 0:00:06]} g6 {[%emt 0:00:22]} 30. Rec3 {[%emt 0:00:15]} Bd5 {[%emt 0:00:11]} 31. Bxd5 {[%emt 0:01:05]} Rxd5 {[%emt 0:00:07]} 32. Kf1 {[%emt 0:04:24] Weighted Error Value: White=0.15 (very precise) /Black=0.13 (very precise)} 1/2-1/2

[Event "Polish Youth G18 Championship 2023"]
[Site "Jastrzebia Gora"]
[Date "2023.03.17"]
[Round "7.3"]
[White "Kucharska, Helena"]
[Black "Nowak, Roksana"]
[Result "1-0"]
[ECO "B51"]
[WhiteElo "1779"]
[BlackElo "1816"]
[Annotator "NA RC COMBH"]
[PlyCount "89"]
[EventDate "2023.03.11"]
[EventType "swiss"]
[EventCountry "POL"]
[SourceTitle "playchess.com"]
[Source "ChessBase"]
[SourceQuality "1"]
[TimeControl "40/5400+30:1800+30"]

1. e4 {[%emt 0:01:22]} c5 {[%emt 0:00:14]} 2. Nf3 {[%emt 0:00:40]} d6 {[%emt 0:00:09]} 3. Bb5+ {[%emt 0:00:19]} Nd7 {[%emt 0:00:12]} 4. d4 {[%emt 0:00:46]} cxd4 {[%emt 0:00:07]} 5. Qxd4 {[%emt 0:00:53]} Ngf6 {[%emt 0:03:35]} 6. O-O {[%emt 0:01:16]} a6 {[%emt 0:02:39]} 7. Bxd7+ {[%emt 0:01:46]} Bxd7 {[%emt 0:00:10]} 8. Bg5 {[%emt 0:00:40]} e6 {[%emt 0:03:37] 8...e6 scores better than 8...h6.} 9. Nbd2 {[%emt 0:01:57]} e5 {[%emt 0:07:08]} 10. Qd3 {[%emt 0:02:03] [#]} h6 $146 {[%emt 0:01:51]} ({Predecessor:} 10... b5 11. Rfe1 h6 12. Bh4 g5 13. Bg3 Be7 14. Nf1 Bc6 15. N3d2 h5 16. h4 Ng4 17. hxg5 {1-0 Chua,X (2065)-Moussard,J (2261) Wch U12 Kemer 2007 (10)}) 11. Bxf6 {[%emt 0:03:57]} Qxf6 {[%emt 0:02:22]} 12. a4 {[%emt 0:02:29]} Rd8 {[%emt 0:05:01]} 13. Nc4 {[%emt 0:05:07]} Be6 {[%emt 0:14:37]} 14. Nb6 {[%emt 0:03:05]} Be7 {[%emt 0:02:57]} 15. Rfd1 {[%emt 0:01:21]} O-O {[%emt 0:02:33]} 16. Nd5 {[%emt 0:04:55]} Bxd5 {[%emt 0:00:15]} 17. Qxd5 {[%emt 0:00:37]} Rb8 {[%emt 0:00:47]} 18. c4 {[%emt 0:01:50]} Rfc8 {[%emt 0:01:40]} 19. b4 {[%emt 0:04:27]} b6 {[%emt 0:06:10]} 20. Nd2 {[%emt 0:05:10]} Bf8 {[%emt 0:09:22]} 21. Nf1 {[%emt 0:01:56]} a5 {[%emt 0:02:48]} 22. b5 {[%emt 0:01:37]} g6 {[%emt 0:06:50]} 23. Ne3 {[%emt 0:05:45]} Be7 {[%emt 0:01:56]} 24. Qd3 {[%emt 0:02:12]} Qg5 {[%emt 0:00:45]} 25. Nd5 {[%emt 0:09:04]} Bd8 {[%emt 0:01:06]} 26. Ra3 {[%emt 0:02:06]} Rb7 {[%emt 0:07:53]} 27. Qe2 {[%emt 0:02:33]} h5 {[%emt 0:06:18]} 28. Rg3 {[%emt 0:04:09]} Qh6 {[%emt 0:06:42]} 29. Ne3 {[%emt 0:00:47]} Bh4 {[%emt 0:08:47]} 30. Nf5 {[%emt 0:01:01]} Qf4 {[%emt 0:00:19]} 31. Rf3 {[%emt 0:00:51]} Qg5 {[%emt 0:00:40]} 32. Nxd6 {[%emt 0:00:54]} Rcc7 {[%emt 0:00:48]} 33. Nxb7 {[%emt 0:01:54]} Rxb7 {[%emt 0:00:02] [#]} 34. c5 $1 {[%emt 0:00:26]} bxc5 {[%emt 0:00:52]} 35. Qc4 {[%emt 0:00:21]} Qe7 {[%emt 0:00:55]} 36. Rd5 {[%emt 0:00:27]} Rc7 {[%emt 0:00:58]} 37. Rc3 {[%emt 0:01:14]} Rd7 {[%emt 0:01:20]} 38. Qxc5 {[%emt 0:01:00]} Rxd5 {[%emt 0:00:10]} 39. exd5 {[%emt 0:00:25]} Qf6 {[%emt 0:00:49]} 40. Rf3 {[%emt 0:00:00]} Qg5 {[%emt 0:00:00]} 41. d6 {[%emt 0:01:27]} Qd2 $18 {[%emt 0:02:32]} 42. g3 {[%emt 0:02:33]} (42. Qxe5 $2 {gets mated.} Qd1+) 42... Bg5 {[%emt 0:01:04]} 43. Qxe5 {[%emt 0:01:18]} f5 {[%emt 0:01:13]} 44. h4 {[%emt 0:00:53]} Qd1+ {[%emt 0:00:58]} 45. Kg2 {[%emt 0:00:22]} 1-0

[Event "Polish Youth G18 Championship 2023"]
[Site "Jastrzebia Gora"]
[Date "2023.03.17"]
[Round "7.4"]
[White "Krzyzosiak, Marta"]
[Black "Skolska, Emilia"]
[Result "0-1"]
[ECO "C45"]
[WhiteElo "1778"]
[BlackElo "1586"]
[Annotator "NA RC COMBH"]
[PlyCount "86"]
[EventDate "2023.03.11"]
[EventType "swiss"]
[EventCountry "POL"]
[SourceTitle "playchess.com"]
[Source "ChessBase"]
[SourceQuality "1"]
[TimeControl "40/5400+30:1800+30"]

1. e4 {[%emt 0:00:03]} e5 {[%emt 0:00:07]} 2. Nf3 {[%emt 0:00:17]} Nc6 {[%emt 0:00:07]} 3. d4 {[%emt 0:00:07]} exd4 {[%emt 0:00:12]} 4. Nxd4 {[%emt 0:00:05]} Bc5 {[%emt 0:00:28]} 5. Be3 {[%emt 0:00:15]} Qf6 {[%emt 0:00:18]} 6. c3 {[%emt 0:00:07]} Nge7 {[%emt 0:00:53]} 7. Bc4 {[%emt 0:00:20]} b6 {[%emt 0:00:16]} 8. O-O {[%emt 0:01:36]} Bb7 {[%emt 0:02:18]} 9. Nxc6 {[%emt 0:22:38]} Qxc6 {[%emt 0:02:08]} 10. Nd2 {[%emt 0:02:18]} Bxe3 {[%emt 0:25:19]} 11. fxe3 {[%emt 0:00:10]} f6 {[%emt 0:00:05]} 12. Qh5+ {[%emt 0:04:35]} Ng6 {[%emt 0:08:12]} 13. Qd5 {[%emt 0:25:46]} O-O-O {[%emt 0:02:16]} 14. Qxc6 {[%emt 0:06:20]} Bxc6 {[%emt 0:00:13]} 15. Bd5 {[%emt 0:00:42]} Rhe8 {[%emt 0:02:09]} 16. Rfe1 {[%emt 0:02:22]} Ne5 {[%emt 0:02:40]} 17. Nf3 {[%emt 0:03:46]} Nd3 {[%emt 0:05:54]} 18. Re2 {[%emt 0:00:54]} Bxd5 {[%emt 0:00:16]} 19. exd5 {[%emt 0:01:48]} Nf4 {[%emt 0:00:13]} 20. Rd2 {[%emt 0:03:44]} Rxe3 {[%emt 0:00:37]} 21. Kf2 {[%emt 0:04:34]} Rde8 {[%emt 0:00:59]} 22. Rad1 {[%emt 0:07:30]} Re2+ {[%emt 0:16:52]} 23. Kf1 {[%emt 0:05:28]} Rxd2 {[%emt 0:00:20]} 24. Rxd2 {[%emt 0:00:38]} Re3 {[%emt 0:01:06]} 25. Nd4 {[%emt 0:01:37]} g6 {[%emt 0:15:04]} 26. c4 {[%emt 0:00:12]} a6 {[%emt 0:01:13]} 27. g3 {[%emt 0:01:11]} Nh3 {[%emt 0:00:49]} 28. b3 {[%emt 0:01:27]} Kd8 {[%emt 0:01:12]} 29. Nc2 {[%emt 0:02:15]} Re5 {[%emt 0:01:34]} 30. Re2 {[%emt 0:00:31]} Rxe2 {[%emt 0:02:54]} 31. Kxe2 {[%emt 0:00:01]} Ke7 {[%emt 0:00:34]} 32. Ke3 {[%emt 0:00:50]} Kd6 {[%emt 0:00:27]} 33. Nb4 {[%emt 0:00:04]} a5 {[%emt 0:00:42]} 34. Nd3 {[%emt 0:00:24]} Ng5 {[%emt 0:00:30]} 35. Nf2 {[%emt 0:01:03]} h5 {[%emt 0:02:51]} 36. Nd3 {[%emt 0:00:24]} Nf7 {[%emt 0:00:51]} 37. h3 {[%emt 0:01:35]} Ne5 {[%emt 0:00:45]} 38. Nf2 {[%emt 0:00:33]} Kc5 {[%emt 0:02:27]} 39. a3 {[%emt 0:00:18]} f5 {[%emt 0:00:21]} 40. Nd1 {[%emt 0:00:00]} a4 {[%emt 0:00:00]} 41. bxa4 Kxc4 {[%emt 0:02:01]} 42. Nb2+ {[%emt 0:06:23]} Kxd5 {[%emt 0:00:45]} 43. Kf4 d6 {[%emt 0:00:33]} 0-1

[Event "Polish Youth G18 Championship 2023"]
[Site "Jastrzebia Gora"]
[Date "2023.03.17"]
[Round "7.5"]
[White "Barwinska, Ewa"]
[Black "Jedrzejko, Martyna"]
[Result "1/2-1/2"]
[ECO "C42"]
[WhiteElo "1963"]
[BlackElo "1629"]
[Annotator "TA"]
[PlyCount "73"]
[EventDate "2023.03.11"]
[EventType "swiss"]
[EventCountry "POL"]
[SourceTitle "playchess.com"]
[Source "ChessBase"]
[SourceQuality "1"]
[TimeControl "40/5400+30:1800+30"]

{[%evp 11,73,12,19,-2,25,16,27,5,5,9,17,0,0,-6,6,-15,8,0,0,0,2,0,25,35,25,20,25,30,20,29,116,37,25,0,33,0,0,-30,-31,-22,22,23,29,-138,-141,-134,-30,-31,-24,-24,-24,-25,-25,-50,-52,-57,-62,-137,0,0,0,-139,0,0]} 1. e4 {[%emt 0:00:30]} e5 {[%emt 0:00:10]} 2. Nf3 {[%emt 0:00:00]} Nf6 {[%emt 0:00:13]} 3. Nxe5 {[%emt 0:00:07]} d6 {[%emt 0:00:13]} 4. Nf3 {[%emt 0:00:37]} Nxe4 {[%emt 0:00:18]} 5. Nc3 {[%emt 0:01:52]} Nxc3 {[%emt 0:00:56]} 6. dxc3 {[%emt 0:00:02]} Be7 {[%emt 0:00:25]} 7. Bf4 {[%emt 0:02:25] C42: Petroff Defence: 3 Nxe5 and unusual White 3rd moves.} Nc6 {[%emt 0:02:06]} 8. Bd3 {[%emt 0:01:29]} Be6 {[%emt 0:02:00]} 9. Qd2 {[%emt 0:01:57] White has an edge.} (9. Nd4 $5 {[%cal Rd4e6]}) 9... Qd7 {[%emt 0:00:51]} 10. O-O-O {[%emt 0:02:21]} O-O-O {[%emt 0:00:42]} 11. Bb5 {[%emt 0:06:57]} a6 {[%emt 0:01:51]} (11... Bxa2 $2 12. b3 $18) 12. Ba4 {[%emt 0:04:49]} Bf6 {[%emt 0:03:40] [#]} (12... Bxa2 $2 13. Bxc6 Qxc6 14. b3 $16) 13. Kb1 $146 {[%emt 0:08:56]} ({Predecessor:} 13. Nd4 Bxd4 14. cxd4 b5 15. Bb3 Bxb3 16. axb3 d5 17. Rhe1 Kb7 18. Re3 Rhe8 19. Rde1 Rxe3 20. Qxe3 {1-0 Al Tarbosh,W (2229)-Golubka,P (2408) Titled Tuesday intern op 09th Nov blitz 2021 (7)}) 13... h6 {[%emt 0:03:52]} 14. Nd4 {[%emt 0:05:16]} Bd5 {[%emt 0:03:16]} 15. f3 {[%emt 0:03:03]} Rde8 {[%emt 0:05:43]} 16. Nb3 {[%emt 0:07:56]} (16. b3 {simplifies} Bxd4 17. Bxc6 Bxc6 18. cxd4 Qf5 19. h3) 16... Bc4 {[%emt 0:14:51] [#] Hoping for ...b5.} (16... Be6 $5 {[%cal Rb7b5]} 17. Nd4 Bd5 $11) 17. Nc5 $1 {[%emt 0:09:25]} Qf5 {[%emt 0:22:13]} 18. Bxc6 {[%emt 0:02:54]} bxc6 {[%emt 0:07:10]} 19. Ne4 {[%emt 0:07:36] The board is on fire.} ({Not} 19. Bxd6 $2 Re2 20. g4 Rxd2 $19) 19... Be5 {[%emt 0:04:46]} 20. Bxe5 {[%emt 0:08:23]} Rxe5 {[%emt 0:02:30]} (20... Qxe5 $11 {remains equal.} 21. b3 Be6) 21. Ng3 {[%emt 0:02:21]} (21. b3 $16) 21... Qg6 {[%emt 0:05:32]} 22. f4 {[%emt 0:06:37]} Ree8 {[%emt 0:07:23]} (22... Rd5 $5 {[%cal Rd5d2]} 23. Qf2 Rxd1+ 24. Rxd1 Qg4 $11) 23. Qd4 {[%emt 0:08:06]} (23. b3 $5 {[%cal Rb3c4]} Bd5 24. c4 $14) 23... Bd5 {[%emt 0:01:49]} ({Much less strong is} 23... Be2 24. f5 Qg4 25. Nxe2 Qxe2 26. Qxg7 $16) 24. f5 {[%emt 0:01:15]} Qg5 {[%emt 0:00:11]} 25. Rhg1 {[%emt 0:02:05] c4 would be deadly.} f6 {[%emt 0:01:19]} 26. c4 {[%emt 0:00:43]} Bf7 {[%emt 0:00:15]} 27. Rd3 $2 {[%emt 0:02:38]} (27. c5 $11 d5 28. Rgf1) 27... c5 $17 {[%emt 0:00:57]} 28. Qc3 {[%emt 0:01:35]} Qf4 {[%emt 0:00:29]} ({Worse is} 28... Qh4 29. b3 $15) (28... h5 $17 {aiming for ...h4.} 29. Rc1 Qf4) 29. b3 $11 {[%emt 0:01:03]} Qf2 {[%emt 0:01:43]} 30. Rdd1 {[%emt 0:00:24]} h5 {[%emt 0:01:28]} 31. Rdf1 {[%emt 0:01:39]} Qe3 {[%emt 0:01:39]} 32. Qa5 {[%emt 0:00:06]} Kb7 {[%emt 0:01:18]} 33. Re1 {[%emt 0:00:11]} Qd4 {[%emt 0:00:50] Threatens to win with ...h4.} 34. Rd1 {[%emt 0:00:32]} ({White should try} 34. Rgf1 $1 $15) 34... Qf2 {[%emt 0:01:11]} 35. Rdf1 {[%emt 0:00:36]} Qd4 {[%emt 0:01:02]} 36. Rd1 {[%emt 0:00:09] [#]} Qf2 {[%emt 0:00:29]} ({Better is} 36... Qg4 $1 $17 {White must now prevent ...h4.} 37. Qd2 h4) 37. Rdf1 {[%emt 0:00:34] Weighted Error Value: White=0.21 (precise) /Black=0.28 (precise)} 1/2-1/2

[Event "Polish Youth G18 Championship 2023"]
[Site "Jastrzebia Gora"]
[Date "2023.03.17"]
[Round "7.6"]
[White "Bukala, Weronika"]
[Black "Labedz, Gabriela"]
[Result "1-0"]
[ECO "B28"]
[WhiteElo "1899"]
[BlackElo "1425"]
[Annotator "NA RC COMBH"]
[PlyCount "55"]
[EventDate "2023.03.11"]
[EventType "swiss"]
[EventCountry "POL"]
[SourceTitle "playchess.com"]
[Source "ChessBase"]
[SourceQuality "1"]
[TimeControl "40/5400+30:1800+30"]

1. e4 {[%emt 0:02:08]} c5 {[%emt 0:00:02]} 2. Nf3 {[%emt 0:00:12]} a6 {[%emt 0:00:06]} 3. c3 {[%emt 0:00:25]} d5 {[%emt 0:00:06]} 4. exd5 {[%emt 0:00:10]} Qxd5 {[%emt 0:00:05]} 5. d4 {[%emt 0:00:31]} e6 {[%emt 0:00:12]} 6. Be3 {[%emt 0:00:28]} cxd4 {[%emt 0:01:22]} 7. cxd4 {[%emt 0:00:42]} Nf6 {[%emt 0:03:47]} 8. Nc3 {[%emt 0:00:58]} Qd8 {[%emt 0:02:55]} 9. Bd3 {[%emt 0:02:18]} Nc6 {[%emt 0:02:46]} 10. O-O {[%emt 0:08:29]} Bd6 {[%emt 0:03:36]} 11. Bg5 {[%emt 0:06:13]} Be7 {[%emt 0:04:51]} 12. a3 {[%emt 0:02:50]} O-O {[%emt 0:04:11]} 13. Bc2 {[%emt 0:00:16]} h6 {[%emt 0:06:58]} 14. Be3 {[%emt 0:05:11]} Nd5 {[%emt 0:06:13]} (14... b5 $11) 15. Qd3 {[%emt 0:02:41]} f5 {[%emt 0:02:07]} 16. Nxd5 {[%emt 0:10:02]} Qxd5 {[%emt 0:01:40]} ({Black should play} 16... exd5 17. Rfe1 Bf6) 17. Bb3 {[%emt 0:00:33]} Qd6 {[%emt 0:07:06]} 18. Rfe1 {[%emt 0:07:52]} Kh8 {[%emt 0:05:23]} 19. Bd2 {[%emt 0:07:10]} ({White should play} 19. Rad1) 19... Bf6 {[%emt 0:06:53]} 20. Qe3 {[%emt 0:12:41]} Bxd4 {[%emt 0:10:22]} 21. Nxd4 {[%emt 0:00:06]} Qxd4 {[%emt 0:01:18]} 22. Bc3 {[%emt 0:02:14]} Qxe3 {[%emt 0:00:53]} 23. Rxe3 {[%emt 0:00:05]} Re8 {[%emt 0:06:21]} 24. Rd1 {[%emt 0:02:43]} e5 $14 {[%emt 0:05:17]} 25. f4 {[%emt 0:03:08]} e4 {[%emt 0:01:57]} 26. Rd6 {[%emt 0:04:36]} Kh7 {[%emt 0:04:07]} 27. Rg3 {[%emt 0:00:09]} Re7 {[%emt 0:02:17]} 28. Rdg6 {[%emt 0:00:23]} 1-0